fUSD/lending_fUSD_20240506
["ID","MTS","AMOUNT","RATE_DAILY","PERIOD"]
[326509847,1715031079506,-355.38189321,0.00025337,2]
[326509848,1715031079517,-150.0,0.00025346,4]
[326509849,1715031079741,-150.0,0.00025355,4]
[326509850,1715031079754,-4989.15905245,0.00025357,2]
[326509851,1715031079764,-169.66,0.00025379,2]
[326509852,1715031079774,-287.09,0.00025379,2]
[326509853,1715031079784,-151.0,0.00025383,7]
[326509854,1715031079793,-268.3,0.00025389,15]
[326509855,1715031079803,-202678.94233421,0.000254,7]
[326509856,1715031079813,-515.0,0.000254,13]
[326509857,1715031079823,-150.0,0.00025415,4]
[326509858,1715031079834,-763.601688,0.00025461,2]
[326509859,1715031079845,-239.8916024,0.00025461,2]
[326509860,1715031079855,-12636.7196268,0.00025461,2]
[326509861,1715031079864,-150.0,0.00025474,4]
[326509862,1715031079874,-362.37557408,0.00025478,2]
[326509863,1715031079884,-362.37557408,0.00025478,2]
[326509864,1715031079894,-531.02,0.00025479,5]
[326509865,1715031079906,-539.13,0.00025479,5]
[326509866,1715031079918,-500.0,0.00025479,5]
[326509867,1715031079928,-746.6,0.00025479,5]
[326509868,1715031079938,-500.0,0.00025479,5]
[326509869,1715031079948,-157.34263858,0.00025479,5]
[326509870,1715031079959,-856.8,0.00025479,5]
[326509871,1715031079969,-500.0,0.00025479,5]
[326509872,1715031079979,-599.37,0.00025479,5]
[326509873,1715031079988,-1336.61,0.00025479,5]
[326509874,1715031079999,-538.01,0.00025479,5]
[326509875,1715031080013,-776.17,0.00025479,5]
[326509876,1715031080023,-500.0,0.00025479,5]
[326509877,1715031080033,-251.58201856,0.00025479,5]
[326509878,1715031080043,-1415.7,0.00025479,5]
[326509879,1715031080054,-500.0,0.00025479,5]
[326509880,1715031080064,-500.0,0.00025479,5]
[326509881,1715031080074,-655.44,0.00025479,5]
[326509882,1715031080087,-536.29,0.00025479,5]
[326509883,1715031080098,-500.0,0.00025479,5]
[326509884,1715031080108,-556.86,0.00025479,5]
[326509885,1715031080118,-500.0,0.00025479,5]
[326509886,1715031080128,-500.0,0.00025479,5]
[326509887,1715031080137,-693.93,0.00025479,5]
[326509888,1715031080147,-500.0,0.00025479,5]
[326509889,1715031080157,-968.39,0.00025479,5]
[326509890,1715031080167,-922.3,0.00025479,5]
[326509891,1715031080176,-500.0,0.00025479,5]
[326509892,1715031080186,-648.3,0.00025479,5]
[326509893,1715031080196,-1253.54,0.00025479,5]
[326509894,1715031080206,-937.46,0.00025479,5]
[326509895,1715031080215,-1466.77,0.00025479,5]
[326509896,1715031080225,-496.35746671,0.00025479,5]
[326509897,1715031080235,-500.0,0.00025479,5]
[326509898,1715031080245,-722.6,0.00025479,5]
[326509899,1715031080255,-500.0,0.00025479,5]
[326509900,1715031080265,-500.0,0.00025479,5]
[326509901,1715031080275,-500.0,0.00025479,5]
[326509902,1715031080285,-843.26,0.00025479,5]
[326509903,1715031080294,-709.48,0.00025479,5]
[326509904,1715031080304,-500.0,0.00025479,5]
[326509905,1715031080314,-626.2,0.00025479,5]
[326509906,1715031080324,-513.62,0.00025479,5]
[326509907,1715031080333,-857.44,0.00025479,5]
[326509908,1715031080343,-1096.6,0.00025479,5]
[326509909,1715031080353,-665.26,0.00025479,5]
[326509910,1715031080363,-500.0,0.00025479,5]
[326509911,1715031080372,-500.0,0.00025479,5]
[326509912,1715031080382,-500.0,0.00025479,5]
[326509913,1715031080392,-1313.63,0.00025479,2]
[326509914,1715031080402,-846.65,0.00025479,5]
[326509915,1715031080413,-543.13,0.00025479,5]
[326509916,1715031080424,-628.4,0.00025479,5]
[326509917,1715031080436,-614.27,0.00025479,5]
[326509918,1715031080446,-500.0,0.00025479,5]
[326509919,1715031080456,-500.0,0.00025479,5]
[326509920,1715031080466,-545.0,0.00025479,5]
[326509921,1715031080476,-500.0,0.00025479,5]
[326509922,1715031080485,-530.05,0.00025479,5]
[326509923,1715031080496,-702.2,0.00025479,5]
[326509924,1715031080506,-1053.6,0.00025479,5]
[326509925,1715031080515,-500.0,0.00025479,5]
[326509926,1715031080526,-793.3,0.00025479,5]
[326509927,1715031080537,-500.0,0.00025479,5]
[326509928,1715031080547,-500.0,0.00025479,5]
[326509929,1715031080557,-500.0,0.00025479,5]
[326509930,1715031080567,-500.0,0.00025479,5]
[326509931,1715031080578,-500.0,0.00025479,5]
[326509932,1715031080590,-559.48,0.00025479,5]
[326509933,1715031080599,-500.0,0.00025479,5]
[326509934,1715031080609,-500.0,0.00025479,5]
[326509935,1715031080619,-500.0,0.00025479,5]
[326509936,1715031080628,-698.42,0.00025479,5]
[326509937,1715031080638,-500.0,0.00025479,5]
[326509938,1715031080648,-1144.43,0.00025479,5]
[326509939,1715031080658,-1002.72,0.00025479,5]
[326509940,1715031080668,-586.1,0.00025479,5]
[326509941,1715031080679,-979.22,0.00025479,5]
[326509942,1715031080689,-574.88,0.00025479,5]
[326509943,1715031080700,-1115.05,0.00025479,5]
[326509944,1715031080710,-500.0,0.00025479,5]
[326509945,1715031080719,-500.0,0.00025479,5]
[326509946,1715031080729,-500.0,0.00025479,5]
[326509947,1715031080739,-500.0,0.00025479,5]
[326509948,1715031080748,-892.13,0.00025479,5]
[326509949,1715031080758,-761.33,0.00025479,5]
[326509950,1715031080768,-500.0,0.00025479,5]
[326509951,1715031080778,-908.25,0.00025479,5]
[326509952,1715031080788,-504.48,0.00025479,5]
[326509953,1715031080799,-500.0,0.00025479,5]
[326509954,1715031080809,-1574.06,0.00025479,5]
[326509955,1715031080819,-843.24,0.00025479,5]
[326509956,1715031080829,-500.0,0.00025479,5]
[326509957,1715031080841,-500.0,0.00025479,5]
[326509958,1715031080850,-826.06,0.00025479,5]
[326509959,1715031080859,-948.59,0.00025479,5]
[326509960,1715031080869,-545.84,0.00025479,5]
[326509961,1715031080879,-645.29750528,0.00025479,5]
[326509962,1715031080888,-500.0,0.00025479,5]
[326509963,1715031080900,-500.0,0.00025479,5]
[326509964,1715031080912,-500.0,0.00025479,5]
[326509965,1715031080922,-1027.69,0.00025479,5]
[326509966,1715031080932,-500.0,0.00025479,5]
[326509967,1715031080941,-500.0,0.00025479,5]
[326509968,1715031080951,-500.0,0.00025479,5]
[326509969,1715031080960,-596.87,0.00025479,5]
[326509970,1715031080970,-500.0,0.00025479,5]
[326509971,1715031080980,-500.0,0.00025479,5]
[326509972,1715031080989,-726.32,0.00025479,5]
[326509973,1715031081000,-793.01,0.00025479,5]
[326509974,1715031081013,-500.0,0.00025479,5]
[326509975,1715031081024,-500.0,0.00025479,5]
[326509976,1715031081035,-500.0,0.00025479,5]
[326509977,1715031081047,-500.0,0.00025479,5]
[326509978,1715031081057,-500.0,0.00025479,5]
[326509979,1715031081067,-500.0,0.00025479,5]
[326509980,1715031081077,-1027.86,0.00025479,5]
[326509981,1715031081090,-500.0,0.00025479,5]
[326509982,1715031081101,-1093.04,0.00025479,5]
[326509983,1715031081111,-500.0,0.00025479,5]
[326509984,1715031081122,-500.0,0.00025479,5]
[326509985,1715031081133,-500.0,0.00025479,5]
[326509986,1715031081143,-500.0,0.00025479,5]
[326509987,1715031081152,-1117.54,0.00025479,5]
[326509988,1715031081162,-826.08,0.00025479,5]
[326509989,1715031081172,-1560.08,0.00025479,5]
[326509990,1715031081182,-500.0,0.00025479,5]
[326509991,1715031081192,-595.69,0.00025479,5]
[326509992,1715031081203,-927.79,0.00025479,5]
[326509993,1715031081213,-567.92,0.00025479,5]
[326509994,1715031081223,-500.0,0.00025479,5]
[326509995,1715031081233,-656.72,0.00025479,5]
[326509996,1715031081243,-1096.55,0.00025479,5]
[326509997,1715031081252,-500.0,0.00025479,5]
[326509998,1715031081262,-612.43,0.00025479,5]
[326509999,1715031081272,-500.0,0.00025479,5]
[326510000,1715031081281,-500.0,0.00025479,5]
[326510001,1715031081291,-500.0,0.00025479,5]
[326510002,1715031081300,-500.0,0.00025479,5]
[326510003,1715031081310,-624.02,0.00025479,5]
[326510004,1715031081319,-540.26,0.00025479,5]
[326510005,1715031081330,-500.0,0.00025479,5]
[326510006,1715031081341,-717.94,0.00025479,5]
[326510007,1715031081350,-1191.24,0.00025479,5]
[326510008,1715031081360,-500.0,0.00025479,5]
[326510009,1715031081371,-646.99,0.00025479,5]
[326510010,1715031081381,-3063.29,0.00025479,5]
[326510011,1715031081391,-500.0,0.00025479,5]
[326510012,1715031081401,-500.0,0.00025479,2]
[326510013,1715031081412,-854.85,0.00025479,5]
[326510014,1715031081423,-500.0,0.00025479,5]
[326510015,1715031081432,-577.97,0.00025479,5]
[326510016,1715031081442,-500.0,0.00025479,5]
[326510017,1715031081453,-1191.23,0.00025479,5]
[326510018,1715031081462,-1220.4,0.00025479,5]
[326510019,1715031081472,-534.39,0.00025479,5]
[326510020,1715031081482,-500.0,0.00025479,5]
[326510021,1715031081492,-1286.91,0.00025479,5]
[326510022,1715031081502,-500.0,0.00025479,5]
[326510023,1715031081513,-500.0,0.00025479,5]
[326510024,1715031081522,-958.76,0.00025479,5]
[326510025,1715031081532,-1391.03,0.00025479,5]
[326510026,1715031081543,-1722.29,0.00025479,5]
[326510027,1715031081554,-771.17,0.00025479,5]
[326510028,1715031081564,-934.79,0.00025479,5]
[326510029,1715031081574,-1630.7,0.00025479,5]
[326510030,1715031081584,-1088.44,0.00025479,5]
[326510031,1715031081595,-500.0,0.00025479,5]
[326510032,1715031081604,-500.0,0.00025479,5]
[326510033,1715031081613,-500.0,0.00025479,5]
[326510034,1715031081623,-500.0,0.00025479,5]
[326510035,1715031081633,-605.93,0.00025479,5]
[326510036,1715031081644,-2117.95,0.00025479,5]
[326510037,1715031081653,-500.0,0.00025479,5]
[326510038,1715031081663,-500.0,0.00025479,5]
[326510039,1715031081673,-955.37,0.00025479,5]
[326510040,1715031081683,-500.0,0.00025479,5]
[326510041,1715031081693,-682.78,0.00025479,5]
[326510042,1715031081706,-617.33,0.00025479,5]
[326510043,1715031081717,-594.89,0.00025479,5]
[326510044,1715031081727,-500.0,0.00025479,5]
[326510045,1715031081736,-500.0,0.00025479,5]
[326510046,1715031081746,-500.0,0.00025479,5]
[326510047,1715031081757,-743.6,0.00025479,5]
[326510048,1715031081768,-963.82,0.00025479,5]
[326510049,1715031081777,-500.0,0.00025479,5]
[326510050,1715031081787,-500.0,0.00025479,5]
[326510051,1715031081797,-1095.91,0.00025479,5]
[326510052,1715031081807,-906.36,0.00025479,5]
[326510053,1715031081817,-562.29,0.00025479,5]
[326510054,1715031081827,-922.9,0.00025479,5]
[326510055,1715031081836,-997.0,0.00025479,5]
[326510056,1715031081846,-627.0,0.00025479,5]
[326510057,1715031081856,-947.33,0.00025479,5]
[326510058,1715031081865,-500.0,0.00025479,5]
[326510059,1715031081875,-1151.25,0.00025479,5]
[326510060,1715031081885,-1254.41,0.00025479,5]
[326510061,1715031081896,-500.0,0.00025479,5]
[326510062,1715031081910,-1451.22,0.00025479,5]
[326510063,1715031081921,-1045.05,0.00025479,5]
[326510064,1715031081931,-647.71,0.00025479,5]
[326510065,1715031081941,-194.32,0.00025479,5]
[326510066,1715031081951,-1459.88,0.00025479,5]
[326510067,1715031081961,-2042.33,0.00025479,5]
[326510068,1715031081970,-1581.94,0.00025479,5]
[326510069,1715031081980,-581.56,0.00025479,5]
[326510070,1715031081990,-960.87,0.00025479,5]
[326510071,1715031082002,-533.55,0.00025479,5]
[326510072,1715031082014,-500.0,0.00025479,5]
[326510073,1715031082024,-500.0,0.00025479,5]
[326510074,1715031082034,-630.38,0.00025479,5]
[326510075,1715031082047,-1313.35,0.00025479,5]
[326510076,1715031082058,-500.0,0.00025479,5]
[326510077,1715031082068,-933.47,0.00025479,5]
[326510078,1715031082078,-500.0,0.00025479,5]
[326510079,1715031082093,-500.0,0.00025479,5]
[326510080,1715031082104,-1769.97,0.00025479,5]
[326510081,1715031082117,-912.28,0.00025479,5]
[326510082,1715031082127,-1841.63,0.00025479,5]
[326510083,1715031082138,-1624.71,0.00025479,5]
[326510084,1715031082148,-720.73,0.00025479,5]
[326510085,1715031082228,-1372.52,0.00025479,5]
[326510086,1715031082238,-639.36,0.00025479,5]
[326510087,1715031082248,-500.0,0.00025479,5]
[326510088,1715031082259,-825.94,0.00025479,5]
[326510089,1715031082268,-666.76,0.00025479,5]
[326510090,1715031082278,-1416.39,0.00025479,5]
[326510091,1715031082289,-500.0,0.00025479,5]
[326510092,1715031082299,-1466.88,0.00025479,5]
[326510093,1715031082308,-873.1,0.00025479,5]
[326510094,1715031082318,-747.74,0.00025479,5]
[326510095,1715031082327,-500.0,0.00025479,5]
[326510096,1715031082338,-2492.32,0.00025479,5]
[326510097,1715031082348,-500.0,0.00025479,5]
[326510098,1715031082357,-642.01,0.00025479,5]
[326510099,1715031082367,-1062.48,0.00025479,5]
[326510100,1715031082377,-584.12,0.00025479,5]
[326510101,1715031082386,-1383.69,0.00025479,5]
[326510102,1715031082397,-881.15,0.00025479,5]
[326510103,1715031082407,-1515.0,0.00025479,5]
[326510104,1715031082417,-908.99,0.00025479,5]
[326510105,1715031082427,-3000.0,0.00025479,3]
[326510106,1715031082437,-995.08,0.00025479,5]
[326510107,1715031082448,-2058.58,0.00025479,5]
[326510108,1715031082459,-1846.04,0.00025479,5]
[326510109,1715031082469,-1462.03,0.00025479,5]
[326510110,1715031082479,-1712.85,0.00025479,5]
[326510111,1715031082488,-932.0,0.00025479,5]
[326510112,1715031082499,-1810.72,0.00025479,5]
[326510113,1715031082508,-500.0,0.00025479,5]
[326510114,1715031082518,-906.35,0.00025479,5]
[326510115,1715031082528,-1605.13,0.00025479,5]
[326510116,1715031082537,-500.0,0.00025479,5]
[326510117,1715031082547,-500.0,0.00025479,5]
[326510118,1715031082556,-851.98,0.00025479,5]
[326510119,1715031082566,-544.26,0.00025479,5]
[326510120,1715031082575,-1572.65,0.00025479,5]
[326510121,1715031082585,-500.0,0.00025479,5]
[326510122,1715031082595,-971.29,0.00025479,5]
[326510123,1715031082604,-1417.8,0.00025479,5]
[326510124,1715031082614,-500.0,0.00025479,5]
[326510125,1715031082623,-1078.05,0.00025479,5]
[326510126,1715031082633,-500.0,0.00025479,5]
[326510127,1715031082643,-500.0,0.00025479,5]
[326510128,1715031082652,-667.21,0.00025479,5]
[326510129,1715031082662,-500.0,0.00025479,5]
[326510130,1715031082672,-1671.76,0.00025479,5]
[326510131,1715031082682,-1564.83,0.00025479,5]
[326510132,1715031082692,-1001.72,0.00025479,5]
[326510133,1715031082701,-662.05,0.00025479,5]
[326510134,1715031082711,-1060.91,0.00025479,5]
[326510135,1715031082720,-500.0,0.00025479,5]
[326510136,1715031082730,-699.43,0.00025479,5]
[326510137,1715031082741,-987.31,0.00025479,5]
[326510138,1715031082750,-586.72,0.00025479,5]
[326510139,1715031082760,-1866.92,0.00025479,5]
[326510140,1715031082770,-1558.72,0.00025479,5]
[326510141,1715031082779,-1209.02,0.00025479,5]
[326510142,1715031082790,-500.0,0.00025479,5]
[326510143,1715031082799,-518.77,0.00025479,5]
[326510144,1715031082808,-931.46,0.00025479,5]
[326510145,1715031082818,-500.0,0.00025479,5]
[326510146,1715031082828,-500.0,0.00025479,5]
[326510147,1715031082838,-681.31,0.00025479,5]
[326510148,1715031082847,-2203.32,0.00025479,5]
[326510149,1715031082857,-1493.62,0.00025479,5]
[326510150,1715031082868,-500.0,0.00025479,5]
[326510151,1715031082877,-523.3,0.00025479,5]
[326510152,1715031082886,-1013.52,0.00025479,5]
[326510153,1715031082896,-569.54,0.00025479,5]
[326510154,1715031082906,-1726.92,0.00025479,5]
[326510155,1715031082920,-1077.66,0.00025479,5]
[326510156,1715031082930,-2222.87,0.00025479,5]
[326510157,1715031082941,-723.21,0.00025479,5]
[326510158,1715031082951,-703.39,0.00025479,5]
[326510159,1715031082962,-500.0,0.00025479,5]
[326510160,1715031082971,-562.36,0.00025479,5]
[326510161,1715031082981,-792.33,0.00025479,5]
[326510162,1715031082991,-500.0,0.00025479,5]
[326510163,1715031083003,-500.0,0.00025479,5]
[326510164,1715031083015,-1175.62,0.00025479,5]
[326510165,1715031083026,-1077.47,0.00025479,5]
[326510166,1715031083035,-1387.01,0.00025479,5]
[326510167,1715031083046,-748.63,0.00025479,5]
[326510168,1715031083055,-1833.82,0.00025479,5]
[326510169,1715031083065,-1649.59,0.00025479,5]
[326510170,1715031083075,-964.03,0.00025479,5]
[326510171,1715031083087,-534.17,0.00025479,5]
[326510172,1715031083097,-1169.09,0.00025479,5]
[326510173,1715031083107,-500.0,0.00025479,5]
[326510174,1715031083117,-555.05,0.00025479,5]
[326510175,1715031083126,-500.0,0.00025479,5]
[326510176,1715031083137,-500.0,0.00025479,5]
[326510177,1715031083146,-668.61,0.00025479,5]
[326510178,1715031083157,-2287.84,0.00025479,5]
[326510179,1715031083167,-500.0,0.00025479,5]
[326510180,1715031083177,-300.0,0.00025479,5]
[326510181,1715031083187,-3315.17,0.00025479,5]
[326510182,1715031083198,-1053.76,0.00025479,5]
[326510183,1715031083208,-564.00332227,0.00025479,5]
[326510184,1715031083219,-587.69,0.00025479,5]
[326510185,1715031083229,-1007.77,0.00025479,5]
[326510186,1715031083239,-2928.99,0.00025479,2]
[326510187,1715031083250,-500.0,0.00025479,5]
[326510188,1715031083260,-500.0,0.00025479,5]
[326510189,1715031083270,-500.0,0.00025479,5]
[326510190,1715031083280,-500.0,0.00025479,5]
[326510191,1715031083289,-1786.34,0.00025479,5]
[326510192,1715031083299,-1354.6,0.00025479,5]
[326510193,1715031083308,-656.24,0.00025479,5]
[326510194,1715031083317,-500.0,0.00025479,5]
[326510195,1715031083328,-1109.65,0.00025479,5]
[326510196,1715031083338,-500.0,0.00025479,5]
[326510197,1715031083347,-500.0,0.00025479,5]
[326510198,1715031083356,-681.11,0.00025479,5]
[326510199,1715031083367,-1113.02,0.00025479,5]
[326510200,1715031083377,-4056.47,0.00025479,5]
[326510201,1715031083387,-500.0,0.00025479,5]
[326510202,1715031083396,-796.07,0.00025479,5]
[326510203,1715031083406,-500.0,0.00025479,5]
[326510204,1715031083418,-1420.26,0.00025479,5]
[326510205,1715031083427,-500.0,0.00025479,5]
[326510206,1715031083438,-500.0,0.00025479,5]
[326510207,1715031083449,-500.0,0.00025479,5]
[326510208,1715031083463,-500.0,0.00025479,5]
[326510209,1715031083472,-794.82,0.00025479,5]
[326510210,1715031083484,-500.0,0.00025479,5]
[326510211,1715031083495,-558.42,0.00025479,5]
[326510212,1715031083504,-653.67,0.00025479,5]
[326510213,1715031083515,-995.72,0.00025479,5]
[326510214,1715031083525,-500.0,0.00025479,5]
[326510215,1715031083535,-523.98,0.00025479,5]
[326510216,1715031083544,-1842.59,0.00025479,5]
[326510217,1715031083554,-1709.41,0.00025479,5]
[326510218,1715031083563,-26351.66,0.00025479,5]
[326510219,1715031083573,-500.0,0.00025479,5]
[326510220,1715031083582,-500.0,0.00025479,5]
[326510221,1715031083593,-1941.85,0.00025479,5]
[326510222,1715031083605,-500.0,0.00025479,5]
[326510223,1715031083615,-557.25,0.00025479,5]
[326510224,1715031083625,-500.0,0.00025479,5]
[326510225,1715031083635,-500.0,0.00025479,2]
[326510226,1715031083645,-500.0,0.00025479,5]
[326510227,1715031083655,-500.0,0.00025479,5]
[326510228,1715031083665,-999.81,0.00025479,5]
[326510229,1715031083676,-1918.01,0.00025479,5]
[326510230,1715031083687,-2710.54,0.00025479,5]
[326510231,1715031083697,-500.0,0.00025479,5]
[326510232,1715031083706,-500.0,0.00025479,5]
[326510233,1715031083716,-620.83,0.00025479,5]
[326510234,1715031083726,-2152.19,0.00025479,5]
[326510235,1715031083735,-1210.79,0.00025479,5]
[326510236,1715031083745,-500.0,0.00025479,5]
[326510237,1715031083754,-2412.19,0.00025479,5]
[326510238,1715031083764,-2124.2,0.00025479,5]
[326510239,1715031083776,-764.57,0.00025479,5]
[326510240,1715031083785,-500.0,0.00025479,5]
[326510241,1715031083795,-556.07,0.00025479,5]
[326510242,1715031083805,-500.0,0.00025479,2]
[326510243,1715031083816,-2121.1,0.00025479,5]
[326510244,1715031083827,-1004.86,0.00025479,5]
[326510245,1715031083839,-2888.84,0.00025479,5]
[326510246,1715031083849,-500.0,0.00025479,5]
[326510247,1715031083859,-500.0,0.00025479,5]
[326510248,1715031083870,-500.0,0.00025479,5]
[326510249,1715031083881,-984.22,0.00025479,5]
[326510250,1715031083891,-1386.29,0.00025479,5]
[326510251,1715031083901,-500.0,0.00025479,5]
[326510252,1715031083915,-500.0,0.00025479,5]
[326510253,1715031083925,-1627.66,0.00025479,5]
[326510254,1715031083935,-626.73,0.00025479,5]
[326510255,1715031083944,-649.76,0.00025479,5]
[326510256,1715031083955,-1022.32,0.00025479,5]
[326510257,1715031083966,-1772.5,0.00025479,5]
[326510258,1715031083976,-500.0,0.00025479,5]
[326510259,1715031083987,-732.84,0.00025479,5]
[326510260,1715031084000,-577.82,0.00025479,5]
[326510261,1715031084015,-739.6,0.00025479,5]
[326510262,1715031084025,-1328.31,0.00025479,5]
[326510263,1715031084035,-168.88898963,0.00025479,5]
[326510264,1715031084047,-875.76,0.00025479,5]
[326510265,1715031084057,-1414.07,0.00025479,5]
[326510266,1715031084068,-2426.78,0.00025479,5]
[326510267,1715031084078,-500.0,0.00025479,5]
[326510268,1715031084092,-500.0,0.00025479,5]
[326510269,1715031084103,-1266.5,0.00025479,5]
[326510270,1715031084112,-500.0,0.00025479,5]
[326510271,1715031084122,-500.0,0.00025479,5]
[326510272,1715031084133,-1241.7,0.00025479,5]
[326510273,1715031084143,-1000.41,0.00025479,5]
[326510274,1715031084152,-500.0,0.00025479,5]
[326510275,1715031084162,-17228.12,0.00025479,5]
[326510276,1715031084172,-2819.95,0.00025479,5]
[326510277,1715031084184,-500.0,0.00025479,5]
[326510278,1715031084194,-500.0,0.00025479,5]
[326510279,1715031084204,-2289.60212066,0.00025479,5]
[326510280,1715031084948,-678.62787934,0.00025479,5]
[326510281,1715031084959,-610.51,0.00025479,5]
[326510282,1715031084970,-143.8098,0.00025479,5]
[326510283,1715031084983,-356.1902,0.00025479,5]
[326510284,1715031084994,-384.64290956,0.00025479,5]
[326510285,1715031085011,-1442.94709044,0.00025479,5]
[326510286,1715031085021,-1893.34,0.00025479,5]
[326510287,1715031085032,-500.0,0.00025479,5]
[326510288,1715031085044,-846.68,0.00025479,5]
[326510289,1715031085054,-1010.8,0.00025479,5]
[326510290,1715031085064,-2521.06,0.00025479,5]
[326510291,1715031085075,-500.0,0.00025479,5]
[326510292,1715031085087,-500.0,0.00025479,5]
[326510293,1715031085098,-500.0,0.00025479,5]
[326510294,1715031085108,-925.25,0.00025479,5]
[326510295,1715031085119,-538.96,0.00025479,5]
[326510296,1715031085129,-1016.07,0.00025479,5]
[326510297,1715031085138,-675.15,0.00025479,5]
[326510298,1715031085149,-1587.31,0.00025479,5]
[326510299,1715031085159,-500.0,0.00025479,5]
[326510300,1715031085168,-500.0,0.00025479,5]
[326510301,1715031085180,-500.0,0.00025479,5]
[326510302,1715031085190,-500.0,0.00025479,5]
[326510303,1715031085201,-568.7,0.00025479,5]
[326510304,1715031085211,-1642.37,0.00025479,5]
[326510305,1715031085221,-1486.12,0.00025479,5]
[326510306,1715031085231,-3553.56,0.00025479,5]
[326510307,1715031085242,-500.0,0.00025479,5]
[326510308,1715031085252,-510.94,0.00025479,5]
[326510309,1715031085263,-500.0,0.00025479,5]
[326510310,1715031085273,-500.0,0.00025479,5]
[326510311,1715031085283,-606.81,0.00025479,5]
[326510312,1715031085294,-500.0,0.00025479,5]
[326510313,1715031085305,-3279.85,0.00025479,5]
[326510314,1715031085315,-500.0,0.00025479,5]
[326510315,1715031085325,-2357.7,0.00025479,5]
[326510316,1715031085335,-2717.0,0.00025479,5]
[326510317,1715031085347,-500.0,0.00025479,5]
[326510318,1715031085357,-500.0,0.00025479,5]
[326510319,1715031085367,-1563.55,0.00025479,5]
[326510320,1715031085379,-500.0,0.00025479,5]
[326510321,1715031085388,-1623.17,0.00025479,5]
[326510322,1715031085399,-1670.09,0.00025479,5]
[326510323,1715031085409,-529.57,0.00025479,5]
[326510324,1715031085419,-1507.64,0.00025479,5]
[326510325,1715031085429,-4805.25,0.00025479,5]
[326510326,1715031085440,-2311.9,0.00025479,5]
[326510327,1715031085450,-847.18,0.00025479,5]
[326510328,1715031085486,-1607.71,0.00025479,5]
[326510329,1715031085603,-500.0,0.00025479,5]
[326510330,1715031085613,-500.0,0.00025479,5]
[326510331,1715031085623,-5042.86,0.00025479,5]
[326510332,1715031085634,-500.0,0.00025479,2]
[326510333,1715031085644,-500.0,0.00025479,5]
[326510334,1715031085654,-2446.52,0.00025479,5]
[326510335,1715031085664,-1030.27,0.00025479,5]
[326510336,1715031085908,-2055.37,0.00025479,5]
[326510337,1715031085919,-881.3,0.00025479,5]
[326510338,1715031085931,-500.0,0.00025479,5]
[326510339,1715031085941,-1101.46,0.00025479,5]
[326510340,1715031085950,-1369.87,0.00025479,5]
[326510341,1715031085960,-624.63,0.00025479,5]
[326510342,1715031085970,-893.84,0.00025479,5]
[326510343,1715031085979,-1145.24,0.00025479,5]
[326510344,1715031085989,-1454.94,0.00025479,5]
[326510345,1715031085998,-1804.42,0.00025479,5]
[326510346,1715031086013,-624.66,0.00025479,5]